fUSD/lending_fUSD_20260515
["ID","MTS","AMOUNT","RATE_DAILY","PERIOD"]
[422328968,1778828318000,-1000.0,0.00011424,2]
[422328970,1778828319000,-831.1971967,0.00011424,2]
[422328971,1778828319000,-168.8028033,0.00011524,2]
[422328972,1778828320000,-1000.0,0.00011524,2]
[422328973,1778828321000,-1000.0,0.00011524,2]
[422328974,1778828322000,-1000.0,0.00011524,2]
[422328975,1778828323000,-1000.0,0.00011524,2]
[422328976,1778828324000,-1000.0,0.00011524,2]
[422328977,1778828331000,-200.0,0.00011524,2]
[422328978,1778828332000,-200.0,0.00011524,2]
[422328980,1778828333000,-200.0,0.00011524,2]
[422328979,1778828333000,-200.0,0.00011524,2]
[422328981,1778828334000,-200.0,0.00011524,2]
[422328982,1778828334000,-200.0,0.00011524,2]
[422328984,1778828334000,-200.0,0.00011524,2]
[422328985,1778828334000,-200.0,0.00011524,2]
[422328983,1778828334000,-200.0,0.00011524,2]
[422328987,1778828335000,-200.0,0.00011524,2]
[422328986,1778828335000,-200.0,0.00011524,2]
[422328990,1778828336000,-200.0,0.00011476,2]
[422328989,1778828336000,-200.0,0.00011524,2]
[422328988,1778828336000,-200.0,0.00011524,2]
[422328991,1778828337000,-200.0,0.00011476,2]
[422328992,1778828337000,-62.23716896,0.00011476,2]
[422328993,1778828337000,-137.76283104,0.00011524,2]
[422328996,1778828338000,-200.0,0.00011524,2]
[422328995,1778828338000,-200.0,0.00011524,2]
[422328994,1778828338000,-200.0,0.00011524,2]
[422328998,1778828339000,-200.0,0.00011524,2]
[422328997,1778828339000,-200.0,0.00011524,2]
[422329001,1778828340000,-200.0,0.00011524,2]
[422329000,1778828340000,-200.0,0.00011524,2]
[422328999,1778828340000,-200.0,0.00011524,2]
[422329002,1778828345000,-200.0,0.00011524,2]
[422329003,1778828346000,-200.0,0.00011524,2]
[422329004,1778828347000,-200.0,0.00011524,2]
[422329006,1778828348000,-200.0,0.00011524,2]
[422329005,1778828348000,-200.0,0.00011524,2]
[422329007,1778828349000,-200.0,0.00011524,2]
[422329008,1778828349000,-200.0,0.00011524,2]
[422329009,1778828354000,-200.0,0.00011524,2]
[422329010,1778828356000,-200.0,0.00011524,2]
[422329011,1778828400000,286.15014536,0.00017901,120]
[422329012,1778828479000,-1152.0,0.00011424,2]
[422329016,1778828859000,227.96,0.00030082,120]
[422329019,1778828998000,3189.0,0.00030137,120]
[422329021,1778829032000,-500.70280518,0.0001,2]
[422329022,1778829032000,-297.378,0.00011294,2]
[422329023,1778829032000,-18.31287298,0.00011318,2]
[422329025,1778829032000,-601.77152877,0.00011318,2]
[422329028,1778829032000,-12554.2650312,0.00011424,2]
[422329026,1778829032000,-2204.58793365,0.00011377,2]
[422329029,1778829032000,-1433.57245022,0.00011424,2]
[422329024,1778829032000,-268.95559825,0.00011318,2]
[422329031,1778829032000,-150.0,0.00011476,2]
[422329030,1778829032000,-774.69244979,0.00011467,2]
[422329037,1778829032000,-538.4677688,0.00011477,2]
[422329033,1778829032000,-70353.20638277,0.00011477,2]
[422329035,1778829032000,-715.4125049,0.00011477,2]
[422329032,1778829032000,-12096.2757891,0.00011477,2]
[422329027,1778829032000,-1200.0,0.00011423,2]
[422329034,1778829032000,-1436.0,0.00011477,2]
[422329053,1778829038000,-207.6048,0.00011524,2]
[422329064,1778829038000,-186.14,0.00011988,2]
[422329062,1778829038000,-12554.2650312,0.0001181,2]
[422329065,1778829038000,-153.68,0.00011988,2]
[422329059,1778829038000,-208.38824723,0.00011691,2]
[422329057,1778829038000,-151.0,0.00011524,2]
[422329069,1778829038000,-2204.58793365,0.00012384,2]
[422329068,1778829038000,-227.96,0.00012329,2]
[422329058,1778829038000,-163.38,0.00011608,2]
[422329055,1778829038000,-207.6048,0.00011524,2]
[422329044,1778829038000,-1828.2958857,0.00011477,2]
[422329051,1778829038000,-162.91528787,0.00011524,2]
[422329052,1778829038000,-503.71585086,0.00011524,2]
[422329049,1778829038000,-311.07666925,0.00011523,2]
[422329048,1778829038000,-1114.07309124,0.00011508,2]
[422329050,1778829038000,-464.52368875,0.00011523,2]
[422329045,1778829038000,-789.0,0.00011507,2]
[422329047,1778829038000,-176.0,0.00011507,2]
[422329056,1778829038000,-207.6048,0.00011524,2]
[422329043,1778829038000,-1325105.05310923,0.00011477,2]
[422329060,1778829038000,-164.45827018,0.00011701,2]
[422329054,1778829038000,-207.6048,0.00011524,2]
[422329061,1778829038000,-219.0,0.0001181,2]
[422329046,1778829038000,-12495.0,0.00011507,2]
[422329063,1778829038000,-2204.58793365,0.0001188,2]
[422329066,1778829038000,-774.69244979,0.00012186,2]
[422329087,1778829038000,-150.0,0.00013488,2]
[422329090,1778829038000,-150.0,0.00013488,2]
[422329082,1778829038000,-500.0,0.00013488,2]
[422329086,1778829038000,-150.1563238,0.00013488,2]
[422329085,1778829038000,-150.0,0.00013488,2]
[422329089,1778829038000,-150.0,0.00013488,2]
[422329084,1778829038000,-150.0,0.00013488,2]
[422329083,1778829038000,-217.40567744,0.00013488,2]
[422329078,1778829038000,-1114.07309122,0.00013204,2]
[422329076,1778829038000,-12554.2650312,0.00012969,2]
[422329088,1778829038000,-150.0,0.00013488,2]
[422329077,1778829038000,-1433.57245022,0.00013162,2]
[422329079,1778829038000,-150.0,0.00013238,2]
[422329075,1778829038000,-12448.07747694,0.00012969,2]
[422329074,1778829038000,-2000.0,0.00012873,2]
[422329071,1778829038000,-255.0,0.00012543,2]
[422329081,1778829038000,-12554.2650312,0.00013355,2]
[422329073,1778829038000,-12554.2650312,0.00012583,2]
[422329072,1778829038000,-1680.0,0.00012565,2]
[422329070,1778829038000,-265.91782473,0.00012423,2]
[422329080,1778829038000,-12448.07747694,0.00013355,2]
[422329067,1778829038000,-12554.2650312,0.00012196,2]
[422329134,1778829039000,-150.0,0.00013669,2]
[422329135,1778829039000,-304.77782066,0.00013669,2]
[422329123,1778829039000,-150.0,0.00013621,2]
[422329133,1778829039000,-304.77782066,0.00013654,2]
[422329126,1778829039000,-304.77782066,0.00013624,2]
[422329121,1778829039000,-150.0,0.00013615,2]
[422329125,1778829039000,-150.0,0.00013624,2]
[422329127,1778829039000,-150.0,0.00013638,2]
[422329132,1778829039000,-150.0,0.00013654,2]
[422329130,1778829039000,-150.0,0.00013651,2]
[422329131,1778829039000,-150.0,0.00013654,2]
[422329137,1778829039000,-150.0,0.00013683,2]
[422329124,1778829039000,-150.0,0.00013624,2]
[422329136,1778829039000,-150.0,0.00013679,2]
[422329147,1778829039000,-500.0,0.00013698,2]
[422329138,1778829039000,-304.77782066,0.00013684,2]
[422329141,1778829039000,-478.0,0.00013698,2]
[422329144,1778829039000,-500.0,0.00013698,2]
[422329142,1778829039000,-500.0,0.00013698,2]
[422329140,1778829039000,-150.0,0.00013692,2]
[422329146,1778829039000,-500.0,0.00013698,2]
[422329143,1778829039000,-500.0,0.00013698,2]
[422329145,1778829039000,-500.0,0.00013698,2]
[422329148,1778829039000,-500.0,0.00013698,2]
[422329128,1778829039000,-304.77782066,0.00013639,2]
[422329150,1778829039000,-500.0,0.00013698,2]
[422329154,1778829039000,-500.0,0.00013698,2]
[422329151,1778829039000,-500.0,0.00013698,2]
[422329157,1778829039000,-500.0,0.00013698,2]
[422329139,1778829039000,-150.0,0.00013687,2]
[422329129,1778829039000,-150.0,0.00013647,2]
[422329113,1778829039000,-304.77782066,0.00013563,2]
[422329115,1778829039000,-304.77782066,0.00013578,2]
[422329158,1778829039000,-500.0,0.00013698,2]
[422329093,1778829039000,-150.0,0.00013488,2]
[422329094,1778829039000,-304.77782066,0.00013488,2]
[422329091,1778829039000,-150.0,0.00013488,2]
[422329092,1778829039000,-150.0,0.00013488,2]
[422329104,1778829039000,-304.77782066,0.00013533,2]
[422329106,1778829039000,-1513.962941,0.00013544,2]
[422329096,1778829039000,-150.0,0.000135,2]
[422329107,1778829039000,-304.77782066,0.00013548,2]
[422329098,1778829039000,-304.77782066,0.00013503,2]
[422329097,1778829039000,-150.0,0.000135,2]
[422329100,1778829039000,-150.0,0.0001352,2]
[422329101,1778829039000,-150.0,0.0001352,2]
[422329095,1778829039000,-150.0,0.00013488,2]
[422329099,1778829039000,-304.77782066,0.00013518,2]
[422329103,1778829039000,-150.0,0.00013533,2]
[422329102,1778829039000,-150.0,0.00013521,2]
[422329105,1778829039000,-871.628342,0.00013544,2]
[422329111,1778829039000,-150.0,0.00013556,2]
[422329108,1778829039000,-150.0,0.00013551,2]
[422329119,1778829039000,-304.77782066,0.00013594,2]
[422329118,1778829039000,-150.0,0.00013588,2]
[422329110,1778829039000,-150.0,0.00013554,2]
[422329109,1778829039000,-150.0,0.00013553,2]
[422329116,1778829039000,-150.0,0.00013583,2]
[422329120,1778829039000,-304.77782066,0.00013609,2]
[422329117,1778829039000,-150.0,0.00013585,2]
[422329114,1778829039000,-150.0,0.00013578,2]
[422329112,1778829039000,-150.0,0.00013563,2]
[422329122,1778829039000,-150.0,0.00013618,2]
[422329159,1778829039000,-500.0,0.00013698,2]
[422329164,1778829039000,-500.0,0.00013698,2]
[422329153,1778829039000,-500.0,0.00013698,2]
[422329187,1778829039000,-500.0,0.00013698,2]
[422329195,1778829039000,-500.0,0.00013698,2]
[422329191,1778829039000,-500.0,0.00013698,2]
[422329196,1778829039000,-500.0,0.00013698,2]
[422329197,1778829039000,-1134.9893546,0.00013698,2]
[422329192,1778829039000,-500.0,0.00013698,2]
[422329194,1778829039000,-500.0,0.00013698,2]
[422329198,1778829039000,-770.7589289,0.00013698,2]
[422329190,1778829039000,-500.0,0.00013698,2]
[422329200,1778829039000,-577.61138007,0.00013698,2]
[422329201,1778829039000,-500.0,0.00013698,2]
[422329202,1778829039000,-500.0,0.00013698,2]
[422329210,1778829039000,-500.0,0.00013698,2]
[422329199,1778829039000,-315.44579433,0.00013698,2]
[422329205,1778829039000,-500.0,0.00013698,2]
[422329208,1778829039000,-500.0,0.00013698,2]
[422329206,1778829039000,-500.0,0.00013698,2]
[422329204,1778829039000,-500.0,0.00013698,2]
[422329203,1778829039000,-500.0,0.00013698,2]
[422329209,1778829039000,-500.0,0.00013698,2]
[422329207,1778829039000,-500.0,0.00013698,2]
[422329212,1778829039000,-500.0,0.00013698,2]
[422329211,1778829039000,-500.0,0.00013698,2]
[422329213,1778829039000,-500.0,0.00013698,2]
[422329214,1778829039000,-500.0,0.00013698,2]
[422329217,1778829039000,-500.0,0.00013698,2]
[422329215,1778829039000,-500.0,0.00013698,2]
[422329218,1778829039000,-500.0,0.00013698,2]
[422329216,1778829039000,-500.0,0.00013698,2]
[422329186,1778829039000,-500.0,0.00013698,2]
[422329189,1778829039000,-500.0,0.00013698,2]
[422329149,1778829039000,-500.0,0.00013698,2]
[422329188,1778829039000,-500.0,0.00013698,2]
[422329156,1778829039000,-500.0,0.00013698,2]
[422329152,1778829039000,-500.0,0.00013698,2]
[422329155,1778829039000,-500.0,0.00013698,2]
[422329160,1778829039000,-500.0,0.00013698,2]
[422329162,1778829039000,-535.54580604,0.00013698,2]
[422329219,1778829039000,-500.0,0.00013698,2]
[422329166,1778829039000,-500.0,0.00013698,2]
[422329163,1778829039000,-500.0,0.00013698,2]
[422329193,1778829039000,-500.0,0.00013698,2]
[422329161,1778829039000,-500.0,0.00013698,2]
[422329165,1778829039000,-500.0,0.00013698,2]
[422329169,1778829039000,-500.0,0.00013698,2]
[422329168,1778829039000,-500.0,0.00013698,2]
[422329167,1778829039000,-500.0,0.00013698,2]
[422329171,1778829039000,-500.0,0.00013698,2]
[422329172,1778829039000,-500.0,0.00013698,2]
[422329170,1778829039000,-500.0,0.00013698,2]
[422329177,1778829039000,-500.0,0.00013698,2]
[422329179,1778829039000,-500.0,0.00013698,2]
[422329181,1778829039000,-500.0,0.00013698,2]
[422329178,1778829039000,-500.0,0.00013698,2]
[422329180,1778829039000,-500.0,0.00013698,2]
[422329183,1778829039000,-500.0,0.00013698,2]
[422329175,1778829039000,-500.0,0.00013698,2]
[422329176,1778829039000,-500.0,0.00013698,2]
[422329173,1778829039000,-500.0,0.00013698,2]
[422329184,1778829039000,-500.0,0.00013698,2]
[422329185,1778829039000,-500.0,0.00013698,2]
[422329174,1778829039000,-500.0,0.00013698,2]
[422329182,1778829039000,-500.0,0.00013698,2]
[422329261,1778829040000,-500.0,0.00013698,2]
[422329263,1778829040000,-500.0,0.00013698,2]
[422329260,1778829040000,-500.0,0.00013698,2]
[422329262,1778829040000,-500.0,0.00013698,2]
[422329258,1778829040000,-500.0,0.00013698,2]
[422329253,1778829040000,-500.0,0.00013698,2]
[422329257,1778829040000,-500.0,0.00013698,2]
[422329255,1778829040000,-500.0,0.00013698,2]
[422329265,1778829040000,-642.29736269,0.00013698,2]
[422329256,1778829040000,-500.0,0.00013698,2]
[422329266,1778829040000,-500.0,0.00013698,2]
[422329259,1778829040000,-500.0,0.00013698,2]
[422329267,1778829040000,-159.03342442,0.00013698,2]
[422329293,1778829040000,-150.0,0.00013743,2]
[422329276,1778829040000,-304.77782066,0.000137,2]
[422329268,1778829040000,-2500.0,0.00013699,2]
[422329270,1778829040000,-156.41,0.00013699,2]
[422329272,1778829040000,-166.66,0.00013699,2]
[422329278,1778829040000,-352.43,0.000137,2]
[422329271,1778829040000,-782.09,0.00013699,2]
[422329280,1778829040000,-150.0,0.00013711,2]
[422329273,1778829040000,-151.0,0.00013699,2]
[422329274,1778829040000,-151.0,0.00013699,2]
[422329275,1778829040000,-211.739508,0.00013699,2]
[422329282,1778829040000,-150.0,0.00013712,2]
[422329295,1778829040000,-150.0,0.00013748,2]
[422329284,1778829040000,-433.0,0.00013714,2]
[422329264,1778829040000,-500.0,0.00013698,2]
[422329269,1778829040000,-200.0,0.00013699,2]
[422329254,1778829040000,-500.0,0.00013698,2]
[422329235,1778829040000,-500.0,0.00013698,2]
[422329251,1778829040000,-500.0,0.00013698,2]
[422329287,1778829040000,-304.77782066,0.00013715,2]
[422329221,1778829040000,-500.0,0.00013698,2]
[422329223,1778829040000,-500.0,0.00013698,2]
[422329224,1778829040000,-500.0,0.00013698,2]
[422329226,1778829040000,-233.1,0.00013698,2]
[422329225,1778829040000,-500.0,0.00013698,2]
[422329220,1778829040000,-500.0,0.00013698,2]
[422329228,1778829040000,-500.0,0.00013698,2]
[422329240,1778829040000,-500.0,0.00013698,2]
[422329239,1778829040000,-401.0210076,0.00013698,2]
[422329227,1778829040000,-500.0,0.00013698,2]
[422329229,1778829040000,-500.0,0.00013698,2]
[422329230,1778829040000,-500.0,0.00013698,2]
[422329231,1778829040000,-500.0,0.00013698,2]
[422329234,1778829040000,-500.0,0.00013698,2]
[422329233,1778829040000,-500.0,0.00013698,2]
[422329238,1778829040000,-500.0,0.00013698,2]
[422329232,1778829040000,-500.0,0.00013698,2]
[422329236,1778829040000,-500.0,0.00013698,2]
[422329241,1778829040000,-500.0,0.00013698,2]
[422329244,1778829040000,-500.0,0.00013698,2]
[422329245,1778829040000,-500.0,0.00013698,2]
[422329243,1778829040000,-527.38709912,0.00013698,2]
[422329242,1778829040000,-500.0,0.00013698,2]
[422329246,1778829040000,-500.0,0.00013698,2]
[422329247,1778829040000,-500.0,0.00013698,2]
[422329249,1778829040000,-500.0,0.00013698,2]
[422329250,1778829040000,-500.0,0.00013698,2]
[422329252,1778829040000,-500.0,0.00013698,2]
[422329248,1778829040000,-500.0,0.00013698,2]
[422329222,1778829040000,-500.0,0.00013698,2]
[422329292,1778829040000,-12554.2650312,0.00013741,2]
[422329291,1778829040000,-12448.07747694,0.00013741,2]
[422329322,1778829040000,-150.0,0.00013854,2]
[422329323,1778829040000,-150.0,0.00013862,2]
[422329329,1778829040000,-150.0,0.00013896,2]
[422329328,1778829040000,-150.0,0.00013887,2]
[422329325,1778829040000,-150.0,0.0001387,2]
[422329327,1778829040000,-304.77782066,0.00013881,2]
[422329326,1778829040000,-150.0,0.00013879,2]
[422329324,1778829040000,-304.77782066,0.00013866,2]
[422329330,1778829040000,-150.0,0.00013896,2]
[422329334,1778829040000,-304.77782066,0.00013912,2]
[422329337,1778829040000,-304.77782066,0.00013927,2]
[422329336,1778829040000,-156.6761228,0.00013922,2]
[422329344,1778829040000,-304.77782066,0.00013957,2]
[422329332,1778829040000,-150.0,0.00013902,2]
[422329341,1778829040000,-304.77782066,0.00013942,2]
[422329338,1778829040000,-150.0,0.00013934,2]
[422329339,1778829040000,-150.0,0.00013937,2]
[422329347,1778829040000,-304.77782066,0.00013972,2]
[422329345,1778829040000,-150.0,0.00013965,2]
[422329340,1778829040000,-150.0,0.00013942,2]
[422329343,1778829040000,-150.0,0.00013954,2]
[422329335,1778829040000,-150.0,0.00013921,2]
[422329348,1778829040000,-166.66,0.00013973,2]
[422329351,1778829040000,-150.0,0.00013987,2]
[422329352,1778829040000,-150.0,0.00013987,2]
[422329349,1778829040000,-150.0,0.00013976,2]
[422329350,1778829040000,-150.0,0.00013987,2]
[422329289,1778829040000,-150.0,0.00013721,2]
[422329342,1778829040000,-150.0,0.00013944,2]
[422329320,1778829040000,-150.0,0.00013851,2]
[422329346,1778829040000,-150.0,0.00013966,2]
[422329333,1778829040000,-150.0,0.00013911,2]
[422329331,1778829040000,-304.77782066,0.00013896,2]
[422329288,1778829040000,-150.0,0.00013716,2]
[422329286,1778829040000,-150.0,0.00013715,2]
[422329290,1778829040000,-304.77782066,0.0001373,2]
[422329296,1778829040000,-150.0,0.00013754,2]
[422329302,1778829040000,-304.77782066,0.00013775,2]
[422329301,1778829040000,-150.0,0.00013775,2]
[422329305,1778829040000,-150.0,0.00013787,2]
[422329299,1778829040000,-304.77782066,0.0001376,2]
[422329300,1778829040000,-500.0,0.00013762,2]
[422329306,1778829040000,-304.77782066,0.0001379,2]
[422329298,1778829040000,-150.0,0.0001376,2]
[422329297,1778829040000,-150.0,0.0001376,2]
[422329304,1778829040000,-150.0,0.00013787,2]
[422329303,1778829040000,-150.0,0.00013781,2]
[422329294,1778829040000,-304.77782066,0.00013745,2]
[422329321,1778829040000,-304.77782066,0.00013851,2]
[422329314,1778829040000,-2351.0,0.00013822,2]
[422329316,1778829040000,-166.66,0.00013836,2]
[422329318,1778829040000,-150.0,0.00013838,2]
[422329307,1778829040000,-150.0,0.00013806,2]
[422329317,1778829040000,-304.77782066,0.00013836,2]
[422329313,1778829040000,-304.77782066,0.00013821,2]
[422329315,1778829040000,-150.0,0.00013828,2]
[422329319,1778829040000,-150.0,0.00013846,2]
[422329310,1778829040000,-150.0,0.00013813,2]
[422329308,1778829040000,-304.77782066,0.00013806,2]
[422329312,1778829040000,-150.0,0.00013821,2]
[422329309,1778829040000,-150.0,0.00013807,2]
[422329311,1778829040000,-150.0,0.00013821,2]
[422329396,1778829041000,-150.0,0.00014169,2]
[422329391,1778829041000,-150.0,0.00014154,2]
[422329387,1778829041000,-12448.07747694,0.00014128,2]
[422329389,1778829041000,-304.77782066,0.00014139,2]
[422329395,1778829041000,-150.0,0.00014162,2]
[422329382,1778829041000,-150.0,0.0001412,2]
[422329399,1778829041000,-150.0,0.00014169,2]
[422329390,1778829041000,-150.0,0.00014139,2]
[422329394,1778829041000,-150.0,0.00014157,2]
[422329388,1778829041000,-12554.2650312,0.00014128,2]
[422329380,1778829041000,-304.77782066,0.00014108,2]
[422329393,1778829041000,-304.77782066,0.00014154,2]
[422329392,1778829041000,-150.0,0.00014154,2]
[422329401,1778829041000,-304.77782066,0.00014169,2]
[422329413,1778829041000,-150.0,0.0001422,2]
[422329407,1778829041000,-150.0,0.00014187,2]
[422329408,1778829041000,-150.0,0.00014189,2]
[422329410,1778829041000,-150.0,0.00014204,2]
[422329412,1778829041000,-304.77782066,0.00014214,2]
[422329409,1778829041000,-304.77782066,0.00014199,2]
[422329403,1778829041000,-150.0,0.00014172,2]
[422329411,1778829041000,-150.0,0.00014214,2]
[422329415,1778829041000,-304.77782066,0.00014229,2]
[422329418,1778829041000,-150.0,0.00014237,2]
[422329417,1778829041000,-150.0,0.00014237,2]
[422329414,1778829041000,-150.0,0.00014221,2]
[422329416,1778829041000,-150.0,0.00014237,2]
[422329430,1778829041000,-150.0,0.00014285,2]
[422329405,1778829041000,-304.77782066,0.00014184,2]
[422329383,1778829041000,-150.0,0.00014123,2]
[422329420,1778829041000,-150.0,0.00014237,2]
[422329379,1778829041000,-150.0,0.00014107,2]
[422329353,1778829041000,-304.77782066,0.00013987,2]
[422329355,1778829041000,-150.0,0.00013998,2]
[422329356,1778829041000,-304.77782066,0.00014002,2]
[422329359,1778829041000,-304.77782066,0.00014017,2]
[422329354,1778829041000,-4092.69037655,0.0001399,2]
[422329358,1778829041000,-150.0,0.00014012,2]
[422329357,1778829041000,-150.0,0.00014009,2]
[422329360,1778829041000,-150.0,0.00014021,2]
[422329362,1778829041000,-150.0,0.00014033,2]
[422329361,1778829041000,-150.0,0.0001403,2]
[422329373,1778829041000,-304.77782066,0.00014078,2]
[422329363,1778829041000,-150.0,0.00014033,2]
[422329365,1778829041000,-500.0,0.00014036,2]
[422329366,1778829041000,-150.0,0.00014042,2]
[422329372,1778829041000,-150.0,0.00014078,2]
[422329374,1778829041000,-150.0,0.00014087,2]
[422329364,1778829041000,-304.77782066,0.00014033,2]
[422329367,1778829041000,-304.77782066,0.00014048,2]
[422329369,1778829041000,-150.0,0.00014062,2]
[422329368,1778829041000,-150.0,0.00014054,2]
[422329370,1778829041000,-304.77782066,0.00014063,2]
[422329371,1778829041000,-150.0,0.00014074,2]
[422329375,1778829041000,-150.0,0.00014087,2]
[422329377,1778829041000,-150.0,0.00014094,2]
[422329384,1778829041000,-304.77782066,0.00014123,2]
[422329376,1778829041000,-304.77782066,0.00014093,2]
[422329386,1778829041000,-500.0,0.00014127,2]
[422329385,1778829041000,-150.0,0.00014125,2]
[422329378,1778829041000,-150.0,0.00014101,2]
[422329381,1778829041000,-166.66,0.0001411,2]
[422329423,1778829041000,-150.76346064,0.00014247,21]
[422329476,1778829041000,-150.0,0.00014487,2]
[422329422,1778829041000,-166.66,0.00014247,2]
[422329467,1778829041000,-150.0,0.00014441,2]
[422329456,1778829041000,-150.0,0.00014387,2]
[422329458,1778829041000,-304.77782066,0.00014396,2]
[422329468,1778829041000,-150.0,0.00014444,2]
[422329464,1778829041000,-150.0,0.00014432,2]
[422329459,1778829041000,-150.0,0.000144,2]
[422329461,1778829041000,-150.0,0.00014412,2]
[422329460,1778829041000,-304.77782066,0.00014411,2]
[422329463,1778829041000,-304.77782066,0.00014426,2]
[422329462,1778829041000,-150.0,0.0001442,2]
[422329466,1778829041000,-304.77782066,0.00014441,2]
[422329465,1778829041000,-150.0,0.00014441,2]
[422329480,1778829041000,-150.0,0.00014498,2]
[422329457,1778829041000,-150.0,0.00014396,2]
[422329470,1778829041000,-304.77782066,0.00014456,2]
[422329469,1778829041000,-150.0,0.00014453,2]
[422329472,1778829041000,-150.0,0.00014465,2]
[422329471,1778829041000,-150.0,0.00014462,2]
[422329475,1778829041000,-2000.0,0.00014482,2]
[422329474,1778829041000,-150.0,0.00014476,2]
[422329484,1778829041000,-5000.0,0.0001451,2]
[422329477,1778829041000,-150.0,0.00014487,2]
[422329473,1778829041000,-304.77782066,0.00014472,2]
[422329479,1778829041000,-304.77782066,0.00014487,2]
[422329483,1778829041000,-150.0,0.00014509,2]
[422329482,1778829041000,-150.0,0.00014508,2]
[422329485,1778829041000,-12448.07747694,0.00014514,2]
[422329419,1778829041000,-150.0,0.00014237,2]
[422329481,1778829041000,-304.77782066,0.00014502,2]
[422329453,1778829041000,-304.77782066,0.00014381,2]
[422329478,1778829041000,-150.0,0.00014487,2]
[422329449,1778829041000,-304.77782066,0.00014366,2]
[422329448,1778829041000,-150.0,0.00014354,2]
[422329431,1778829041000,-150.0,0.00014287,2]
[422329421,1778829041000,-304.77782066,0.00014245,2]
[422329424,1778829041000,-150.0,0.00014253,2]
[422329428,1778829041000,-150.0,0.0001427,2]
[422329427,1778829041000,-304.77782066,0.0001426,2]
[422329425,1778829041000,-150.0,0.00014254,2]
[422329429,1778829041000,-304.77782066,0.00014275,2]
[422329432,1778829041000,-304.77782066,0.0001429,2]
[422329434,1778829041000,-150.0,0.00014305,2]
[422329438,1778829041000,-150.0,0.00014312,2]
[422329440,1778829041000,-150.0,0.0001432,2]
[422329433,1778829041000,-150.0,0.00014302,2]
[422329435,1778829041000,-150.0,0.00014305,2]
[422329426,1778829041000,-150.0,0.0001426,2]
[422329436,1778829041000,-304.77782066,0.00014305,2]
[422329439,1778829041000,-150.0,0.00014317,2]
[422329452,1778829041000,-150.0,0.0001438,2]
[422329447,1778829041000,-304.77782066,0.00014351,2]
[422329450,1778829041000,-150.0,0.00014367,2]
[422329446,1778829041000,-150.0,0.00014351,2]
[422329444,1778829041000,-304.77782066,0.00014335,2]
[422329454,1778829041000,-166.66,0.00014384,2]
[422329445,1778829041000,-150.0,0.00014349,2]
[422329437,1778829041000,-500.0,0.0001431,2]
[422329455,1778829041000,-150.0,0.00014387,2]
[422329443,1778829041000,-150.0,0.00014335,2]
[422329451,1778829041000,-150.0,0.00014373,2]
[422329441,1778829041000,-150.0,0.0001432,2]
[422329442,1778829041000,-304.77782066,0.0001432,2]
[422329524,1778829042000,-500.0,0.00014522,2]
[422329516,1778829042000,-500.0,0.00014522,2]
[422329515,1778829042000,-500.0,0.00014522,2]
[422329521,1778829042000,-500.0,0.00014522,2]
[422329522,1778829042000,-500.0,0.00014522,2]
[422329517,1778829042000,-500.0,0.00014522,2]
[422329523,1778829042000,-500.0,0.00014522,2]